bitfinex-derivatives/quotes_SOLF0:USTF0_20250221
["timestamp","ask_amount","ask_price","bid_price","bid_amount"]
[1740103709706,5.73,174.47,174.44,0.04123724]
[1740103709905,10.27765979,174.48,174.44,0.04123724]
[1740103710603,5.73,174.47,174.44,0.04123724]
[1740103711401,5.7304,174.45,174.44,0.04123724]
[1740103714501,210.79855236,174.46,174.31,0.68980104]
[1740103714695,10.23855236,174.37,174.31,10.9283534]
[1740103715403,5.7334,174.36,174.31,16.6631534]
[1740103715703,0.03702678,174.35,174.32,0.03984539]
[1740103717105,5.77072678,174.35,174.32,0.03984539]
[1740103717702,5.7344,174.33,174.32,0.03984539]
[1740103717899,15.97295236,174.33,174.32,0.03984539]
[1740103719110,15.97295236,174.33,174.32,4.539e-05]
[1740103719309,10.23855236,174.33,174.22,5.33910189]
[1740103719504,10.23855236,174.28,174.22,5.7377]
[1740103719704,10.23855236,174.28,174.22,11.07818618]
[1740103719903,10.23855236,174.28,174.22,5.7377]
[1740103720107,10.23855236,174.28,174.21,160.33855236]
[1740103720302,10.23855236,174.28,174.21,15.97675236]
[1740103720505,10.27642065,174.26,174.23,0.04337299]
[1740103720705,10.23855236,174.26,174.23,0.04337299]
[1740103720908,10.27477176,174.26,174.23,0.04337299]
[1740103722712,0.0362194,174.26,174.23,0.04337299]
[1740103724308,0.0362194,174.26,174.23,5.78097299]
[1740103725812,0.0362194,174.26,174.24,5.7373]
[1740103726213,0.0362194,174.26,174.23,0.04337299]
[1740103726609,0.0362194,174.26,174.25,5.737]
[1740103735418,5.7731194,174.26,174.23,0.04337299]
[1740103735610,0.0362194,174.26,174.23,0.04337299]
[1740103736015,5.7373,174.24,174.23,0.04337299]
[1740103737320,5.7371,174.25,174.23,0.04337299]
[1740103737622,0.0362194,174.26,174.23,0.04337299]
[1740103738018,5.737,174.25,174.23,0.04337299]
[1740103738214,0.0362194,174.26,174.23,0.04337299]
[1740103739412,5.737,174.25,174.23,0.04337299]
[1740103739617,0.0362194,174.26,174.23,0.04337299]
[1740103740023,5.737,174.25,174.23,0.04337299]
[1740103740517,16.04660369,174.26,174.14,16.01038429]
[1740103740719,3.6542,174.25,174.17,16.01038429]
[1740103741122,19.66458429,174.25,174.17,5.7396]
[1740103741413,19.66458429,174.25,174.14,16.01038429]
[1740103741822,0.03732889,174.21,174.18,5.77831558]
[1740103742722,0.03732889,174.21,174.19,5.7389]
[1740103742924,0.03732889,174.21,174.18,0.03921558]
[1740103743326,0.03732889,174.21,174.2,5.7386]
[1740103744625,0.03732889,174.21,174.18,5.77821558]
[1740103744822,5.77572889,174.21,174.18,5.77821558]
[1740103745320,0.03732889,174.21,174.18,0.03921558]
[1740103745519,10.25034623,174.2,174.18,0.03921558]
[1740103746028,3.63672889,174.21,174.18,0.03921558]
[1740103746229,0.03732889,174.21,174.18,0.03921558]
[1740103746527,0.03732889,174.21,174.2,5.7386]
[1740103748019,0.03732889,174.21,174.2,15.98894623]
[1740103748218,0.03732889,174.21,174.19,5.7389]
[1740103748422,0.03732889,174.21,174.18,10.28956181]
[1740103748627,0.03732889,174.21,174.19,5.7389]
[1740103748829,0.03732889,174.21,174.18,0.03921558]
[1740103749326,0.03732889,174.21,174.18,5.77831558]
[1740103749523,0.03732889,174.21,174.18,0.03921558]
[1740103750123,5.7389,174.2,174.18,0.03921558]
[1740103750822,5.739,174.19,174.18,0.03921558]
[1740103752831,5.739,174.19,174.12,16.70554438]
[1740103752832,16.0524253,174.21,174.12,16.70554438]
[1740103753138,16.01509641,174.21,174.12,6.43144797]
[1740103753328,5.7402,174.16,174.12,6.43144797]
[1740103753925,5.7403,174.16,174.12,6.43144797]
[1740103754129,0.03931425,174.16,174.12,0.72842119]
[1740103754330,0.03931425,174.16,174.12,0.03797322]
[1740103755736,5.7403,174.15,174.12,0.03797322]
[1740103755936,0.03931425,174.16,174.13,5.7409]
[1740103756331,5.77961425,174.16,174.13,5.7409]
[1740103758839,5.7403,174.15,174.12,0.03797322]
[1740103759135,0.03931425,174.16,174.12,0.03797322]
[1740103760141,0.03931425,174.16,174.14,5.7404]
[1740103761737,0.03931425,174.16,174.12,0.03797322]
[1740103762335,0.03931425,174.16,174.15,5.7403]
[1740103764341,0.03931425,174.16,174.12,0.03797322]
[1740103764543,0.03931425,174.16,174.14,5.7403]
[1740103764735,0.03931425,174.16,174.12,0.03797322]
[1740103765841,0.03931425,174.16,174.14,5.7404]
[1740103766238,0.03931425,174.16,174.15,5.7403]
[1740103767644,0.03931425,174.16,174.12,0.03797322]
[1740103768443,0.03931425,174.16,174.14,5.7403]
[1740103769043,0.03931425,174.16,174.15,5.7403]
[1740103769543,0.03931425,174.16,174.14,5.7405]
[1740103771647,0.03931425,174.16,174.12,0.03797322]
[1740103772243,5.77931425,174.16,174.13,5.7407]
[1740103772948,5.7403,174.15,174.13,5.7407]
[1740103773748,5.77931425,174.16,174.13,5.7407]
[1740103774643,5.7403,174.15,174.13,5.7407]
[1740103775238,5.77941425,174.16,174.13,5.7407]
[1740103775654,0.03931425,174.16,174.13,5.7407]
[1740103775848,10.2574429,174.14,174.12,0.03797322]
[1740103776442,5.7409,174.13,174.12,0.03797322]
[1740103781656,10.2574429,174.15,174.12,0.03797322]
[1740103782253,5.7409,174.14,174.12,0.03797322]
[1740103782654,15.9979429,174.15,174.12,0.03797322]
[1740103782856,10.2574429,174.15,174.12,0.03797322]
[1740103784151,5.7406,174.14,174.12,5.77907322]
[1740103784955,5.7409,174.13,174.12,0.03797322]
[1740103785562,15.9983429,174.13,174.12,0.03797322]
[1740103786162,10.2574429,174.13,174.03,10.2574429]
[1740103786353,10.2574429,174.1,174.03,10.2574429]
[1740103786554,10.2574429,174.08,174.04,5.7437]
[1740103787256,10.2574429,174.08,174.01,10.2574429]
[1740103787464,10.29677805,174.08,174.04,0.03762482]
[1740103788265,5.7435,174.06,174.04,0.03762482]
[1740103790368,5.7436,174.05,174.04,0.03762482]
[1740103790868,16.0009429,174.06,174.04,0.03762482]
[1740103793562,5.7436,174.05,174.04,0.03762482]
[1740103795065,5.7444,174.03,174.0,5.7451]
[1740103795269,16.0018429,174.03,174.0,5.7451]
[1740103796182,16.04563726,174.03,174.0,5.78887975]
[1740103796373,10.30123726,174.03,174.01,5.7448]
[1740103797970,10.30123726,174.03,174.02,5.7446]
[1740103800864,16.04563726,174.03,174.01,5.7447]
[1740103801060,10.30123726,174.03,174.01,5.7447]
[1740103801265,10.30123726,174.03,174.0,0.04377975]
[1740103802272,5.7448,174.02,174.0,0.04377975]
[1740103802467,10.30123726,174.03,174.0,0.04377975]
[1740103802977,5.7449,174.01,174.0,0.04377975]
[1740103803576,16.0023429,174.01,174.0,0.04377975]
[1740103806476,16.0023429,174.01,174.0,7.975e-05]
[1740103806772,10.2574429,174.01,173.91,5.7479]
[1740103806973,10.2574429,173.96,173.91,5.7479]
[1740103807179,10.2574429,173.96,173.9,10.2574429]
[1740103807777,0.03916497,173.95,173.91,0.04245864]
[1740103807975,10.2574429,173.94,173.91,0.04245864]
[1740103808480,5.7475,173.93,173.91,0.04245864]
[1740103808680,0.03916497,173.95,173.91,0.04245864]
[1740103809276,10.2574429,173.94,173.91,0.04245864]
[1740103809577,16.0049429,173.94,173.91,0.04245864]
[1740103809782,10.2574429,173.94,173.91,0.04245864]
[1740103810387,16.0047429,173.94,173.91,0.04245864]
[1740103810683,10.2574429,173.94,173.91,0.04245864]
[1740103811678,10.29660787,173.95,173.93,5.7475]
[1740103811875,0.03916497,173.95,173.92,10.2574429]
[1740103812283,0.03916497,173.95,173.94,5.7472]
[1740103812879,0.03916497,173.95,173.93,5.7475]
[1740103813183,0.03916497,173.95,173.91,0.04245864]
[1740103813388,0.03916497,173.95,173.94,5.7472]
[1740103814691,0.03916497,173.95,173.93,5.7475]
[1740103815086,0.03916497,173.95,173.91,0.04245864]
[1740103815391,0.03916497,173.95,173.94,5.7472]
[1740103815990,0.03916497,173.95,173.94,5.39445076]
[1740103816988,0.03916497,173.95,173.94,15.65189366]
[1740103817187,10.2574429,174.02,173.94,10.2574429]
[1740103817387,10.2574429,174.04,173.97,10.2574429]
[1740103817588,16.0015429,174.04,173.92,3.5957]
[1740103817791,16.0015429,174.04,174.0,5.7451]
[1740103817991,10.2574429,174.04,173.97,10.2574429]
[1740103818187,10.2574429,174.04,174.01,5.7448]
[1740103818394,0.0362626,174.02,174.01,5.7448]
[1740103818589,0.0362626,174.02,173.99,0.03735787]
[1740103818990,0.0362626,174.02,174.0,5.745]
[1740103819390,0.0362626,174.02,173.99,0.03735787]
[1740103819590,0.0362626,174.02,174.01,5.7449]
[1740103820788,0.0362626,174.02,173.99,0.03735787]
[1740103821291,5.7808626,174.02,173.99,0.03735787]
[1740103821485,5.7808626,174.02,173.99,5.78275787]
[1740103822289,0.0362626,174.02,173.99,5.78275787]
[1740103822495,0.0362626,174.02,173.99,0.03735787]
[1740103823301,0.0362626,174.02,174.01,5.7449]
[1740103824199,19.48485434,174.14,174.06,5.743]
[1740103824402,5.7433,174.06,174.0,17.75965434]
[1740103824603,5.7433,174.06,174.0,1.7074]
[1740103824801,5.7433,174.06,174.02,5.7444]
[1740103825202,5.7427,174.08,174.0,1.7074]
[1740103825394,0.03876201,174.06,174.04,5.7437]
[1740103825798,0.03876201,174.06,174.05,5.7436]
[1740103827202,5.7412,174.13,174.03,16.05225434]
[1740103827502,16.56802821,174.15,174.03,16.05225434]
[1740103828498,0.0431378,174.11,174.09,5.742]
[1740103828696,0.0431378,174.11,174.07,0.04066709]
[1740103828908,0.0431378,174.11,174.08,5.7425]
[1740103830302,0.0431378,174.11,174.07,0.04066709]
[1740103830603,0.0431378,174.11,174.09,5.7421]
[1740103831104,0.0431378,174.11,174.07,0.04066709]
[1740103831303,5.7850378,174.11,174.07,0.04066709]
[1740103832402,5.7850378,174.11,174.08,5.7425]
[1740103832403,0.0431378,174.11,174.08,5.7425]
[1740103833307,5.7849378,174.11,174.08,5.7425]
[1740103834208,5.7426,174.08,174.07,0.04066709]
[1740103834603,19.64735434,174.1,173.97,16.05225434]
[1740103834801,5.7437,174.05,173.97,16.05225434]
[1740103835006,16.05225434,174.07,173.97,16.05225434]
[1740103835206,5.7434,174.06,174.03,5.7442]
[1740103835607,16.05225434,174.07,174.03,5.7442]
[1740103835813,7.465,174.09,174.06,5.7433]
[1740103836108,0.03814892,174.07,174.03,0.03921324]
[1740103836300,5.7416,174.11,174.08,5.7425]
[1740103836706,5.77927131,174.11,174.03,16.05225434]
[1740103836907,0.03767131,174.11,174.08,0.03785297]
[1740103837704,16.05225434,174.1,174.08,0.03785297]
[1740103837904,16.05225434,174.1,173.99,3.6352]
[1740103838103,5.7434,174.06,174.03,5.7441]
[1740103838608,5.7431,174.07,174.04,5.7437]
[1740103838909,17.78705434,174.1,173.99,3.6352]
[1740103839213,5.7436,174.05,174.04,0.03892838]
[1740103841110,16.09299437,174.07,173.98,5.7457]
[1740103841305,16.05225434,174.03,173.94,3.6875]
[1740103842207,0.04414422,174.0,173.97,0.04243304]
[1740103842506,0.04414422,174.0,173.98,5.7459]
[1740103844215,0.04414422,174.0,173.99,5.7456]
[1740103846809,193.0,174.07,174.06,5.7433]
[1740103847115,17.78705434,174.1,174.0,16.05225434]
[1740103847518,17.78705434,174.1,174.06,5.743]
[1740103847914,17.8309286,174.1,174.06,0.03941846]
[1740103848312,5.7429,174.07,174.06,0.03941846]
[1740103848807,5.7425,174.09,174.06,0.03941846]
[1740103849009,0.04387426,174.1,174.06,0.03941846]
[1740103850813,5.7429,174.07,174.06,0.03941846]
[1740103853917,5.7429,174.07,174.06,1.846e-05]
[1740103854613,5.7454,174.0,173.94,19.73975434]
[1740103854816,16.05225434,174.05,173.94,19.73975434]
[1740103855114,5.7458,173.99,173.94,3.6875]
[1740103855317,16.05225434,174.05,173.94,3.6875]
[1740103855719,0.04211366,174.01,173.98,0.03650653]
[1740103856221,5.7456,173.99,173.98,0.03650653]
[1740103857718,5.7453,174.0,173.98,0.03650653]
[1740103859218,0.04211366,174.01,173.98,0.03650653]
[1740103859420,5.78721366,174.01,173.98,5.78240653]
[1740103860123,0.04211366,174.01,173.98,5.78240653]
[1740103860320,5.7453,174.0,173.98,0.03650653]
[1740103860917,5.7456,173.99,173.98,0.03650653]
[1740103861519,0.04211366,174.01,173.98,0.03650653]
[1740103862224,5.7456,173.99,173.98,0.03650653]
[1740103863321,5.7453,174.0,173.98,0.03650653]
[1740103864423,0.04211366,174.01,173.98,0.03650653]
[1740103865427,5.7456,173.99,173.98,0.03650653]
[1740103868729,16.05225434,173.99,173.92,5.7478]
[1740103868929,5.7472,173.94,173.92,5.7478]
[1740103869417,16.05225434,173.99,173.92,5.7478]
[1740103869418,5.7471,173.95,173.92,5.7478]
[1740103870029,5.79035447,173.95,173.92,5.78620686]
[1740103870428,0.04325447,173.95,173.92,5.78620686]
[1740103870726,5.7472,173.94,173.92,5.78620686]
[1740103871424,5.7475,173.93,173.92,0.03840686]
[1740103873130,16.03101016,173.93,173.92,0.03840686]
[1740103873929,10.28351016,173.93,173.92,0.03840686]
[1740103875432,16.03101016,173.93,173.92,0.03840686]
[1740103877833,10.28351016,173.93,173.92,0.03840686]
[1740103879427,16.03101016,173.93,173.92,0.03840686]
[1740103880235,10.28351016,173.93,173.92,0.03840686]
[1740103880831,10.28351016,173.93,173.92,5.78630686]
[1740103884234,0.04325447,173.95,173.94,5.7472]
[1740103884449,0.04325447,173.95,173.92,0.03840686]
[1740103886240,0.04325447,173.95,173.94,5.7472]
[1740103889541,0.04325447,173.95,173.93,5.7475]
[1740103889939,0.04325447,173.95,173.92,0.03840686]
[1740103890141,0.04325447,173.95,173.94,5.7472]
[1740103904769,0.04325447,173.95,173.92,0.03840686]
[1740103905659,5.79015447,173.95,173.92,5.78610686]
[1740103905860,10.28351016,173.94,173.92,0.03840686]
[1740103906969,5.7475,173.93,173.92,0.03840686]
[1740103908567,16.03081016,173.94,173.92,0.03840686]
[1740103908765,10.28351016,173.94,173.92,0.03840686]
[1740103909367,10.28351016,173.94,173.93,5.7475]
[1740103912769,0.04325447,173.95,173.94,5.7472]
[1740103914565,0.04325447,173.95,173.92,0.03840686]
[1740103914566,5.7472,173.94,173.92,0.03840686]
[1740103914766,10.28351016,173.94,173.92,0.03840686]
[1740103916374,5.7475,173.93,173.92,0.03840686]
[1740103917268,10.28351016,173.94,173.83,12.03561016]
[1740103917475,10.28351016,173.89,173.83,16.03411016]
[1740103917870,10.28351016,173.87,173.81,10.28351016]
[1740103918066,10.28351016,173.87,173.82,5.7511]
[1740103918477,5.79210443,173.86,173.83,0.0391479]
[1740103918775,0.04200443,173.86,173.83,0.0391479]
[1740103920377,0.04200443,173.86,173.84,5.7503]
[1740103920678,0.04200443,173.86,173.83,0.0391479]
[1740103920880,0.04200443,173.86,173.85,5.7502]
[1740103921577,0.04200443,173.86,173.85,16.03371016]
[1740103922478,10.28351016,173.92,173.9,5.7483]
[1740103922879,10.28351016,173.92,173.85,10.28351016]
[1740103923079,10.28351016,173.92,173.91,5.7482]
[1740103927785,10.28351016,173.92,173.9,0.03624115]
[1740103927987,10.28351016,173.92,173.9,5.78444115]
[1740103928184,10.28351016,173.92,173.9,0.03624115]
[1740103929982,5.7482,173.91,173.9,0.03624115]
[1740103930383,10.28351016,173.92,173.81,10.28351016]
[1740103930690,10.28351016,173.87,173.86,5.7499]
[1740103931089,10.28351016,173.87,173.85,5.7501]
[1740103931280,10.28351016,173.87,173.81,10.28351016]
[1740103931592,10.28351016,173.87,173.84,0.04161432]
[1740103933389,10.28351016,173.87,173.85,5.7502]
[1740103933987,10.28351016,173.87,173.84,5.79211432]
[1740103934187,10.28351016,173.87,173.84,0.04161432]
[1740103935186,10.28351016,173.87,173.85,5.7502]
[1740103935486,10.28351016,173.87,173.84,0.04161432]
[1740103935997,16.03311016,173.87,173.84,5.79181432]
[1740103936495,10.28351016,173.87,173.84,5.79181432]
[1740103938095,10.28351016,173.87,173.84,0.04161432]
[1740103939087,10.28351016,173.87,173.85,5.7502]
[1740103939496,10.28351016,173.87,173.84,0.04161432]
[1740103939794,10.28351016,173.87,173.86,5.7499]
[1740103941491,0.04262691,173.88,173.84,0.04161432]
[1740103941690,0.04262691,173.88,173.87,5.7495]
[1740103946193,2.691e-05,173.88,173.87,16.03301016]
[1740103953697,2.691e-05,173.88,173.87,5.7495]
[1740103954803,2.691e-05,173.88,173.86,5.7496]
[1740103955305,2.691e-05,173.88,173.85,10.28351016]
[1740103955602,2.691e-05,173.88,173.84,0.04161432]
[1740103955803,5.7501,173.86,173.84,0.04161432]
[1740103956099,10.28351016,173.87,173.84,0.04161432]
[1740103956300,16.03321016,173.87,173.84,5.79211432]
[1740103957200,10.28351016,173.87,173.84,5.79211432]
[1740103958295,10.28351016,173.87,173.85,5.7501]
[1740103959406,2.691e-05,173.88,173.87,5.7495]
[1740103959606,2.691e-05,173.88,173.87,16.03301016]
[1740103967111,2.691e-05,173.88,173.84,0.04161432]
[1740103967112,5.74942691,173.88,173.85,16.03341016]
[1740103967504,2.691e-05,173.88,173.84,0.04161432]
[1740103967718,5.75,173.86,173.84,0.04161432]
[1740103968410,5.7496,173.87,173.84,0.04161432]
[1740103969412,16.03283707,173.88,173.84,5.79191432]
[1740103971010,16.03283707,173.88,173.85,5.7502]
[1740103972814,10.28353707,173.88,173.84,5.79181432]
[1740103973110,10.28351016,173.86,173.84,0.04161432]
[1740103973511,10.28351016,173.86,173.84,5.79191432]
[1740103974512,10.28351016,173.86,173.84,0.04161432]
[1740103975112,5.7502,173.85,173.84,0.04161432]
[1740103977316,5.7514,173.82,173.78,5.7525]
[1740103977510,16.03491016,173.82,173.78,5.7525]
[1740103977717,10.28351016,173.82,173.78,5.7525]
[1740103978012,5.7518,173.81,173.78,5.7525]
[1740103978408,5.79396206,173.81,173.78,5.78898729]
[1740103979810,0.04216206,173.81,173.78,5.78898729]
[1740103980205,0.04216206,173.81,173.78,0.03648729]
[1740103980410,0.04216206,173.81,173.79,5.752]
[1740103981009,0.04216206,173.81,173.78,0.03648729]
[1740103981209,0.04216206,173.81,173.8,5.7518]
[1740103984413,0.04216206,173.81,173.78,0.03648729]
[1740103984615,10.28351016,173.8,173.78,0.03648729]
[1740103985719,5.7522,173.79,173.78,0.03648729]
[1740103986106,10.28351016,173.8,173.72,10.28351016]
[1740103986313,10.28351016,173.75,173.7,10.28351016]
[1740103986719,5.7539,173.74,173.71,5.7546]
[1740103987419,5.79128385,173.74,173.71,0.03769584]
[1740103987630,16.03801016,173.73,173.71,0.03769584]
[1740103987919,10.28351016,173.73,173.71,0.03769584]
[1740103991729,10.28351016,173.73,173.71,5.79249584]
[1740103993335,10.28351016,173.73,173.71,0.03769584]
[1740103993533,0.03738385,173.74,173.71,0.03769584]
[1740103993735,0.03738385,173.74,173.71,10.321206]
[1740103994535,0.03738385,173.74,173.73,5.7542]
[1740103995639,8.385e-05,173.74,173.73,16.03771016]
[1740103997837,10.28351016,173.84,173.83,5.7508]
[1740103998232,10.28351016,173.84,173.78,10.28351016]
[1740103998434,10.28351016,173.84,173.8,5.7516]
[1740103998927,10.28351016,173.82,173.8,0.03874244]
[1740103999929,10.28351016,173.82,173.72,10.28351016]
[1740104000133,10.28351016,173.78,173.73,5.7539]
[1740104000330,10.28351016,173.78,173.72,10.28351016]
[1740104000530,16.03691016,173.76,173.68,81.35427715]
[1740104000736,10.28351016,173.74,173.7,5.7551]
[1740104000933,10.32190744,173.74,173.7,0.03763167]
[1740104001943,10.32190744,173.74,173.72,5.7544]
[1740104002138,0.03839728,173.74,173.72,5.7544]
[1740104004546,0.03839728,173.74,173.73,5.7542]
[1740104009348,0.03839728,173.74,173.7,0.03763167]
[1740104010252,0.03839728,173.74,173.71,5.7548]
[1740104011250,0.03839728,173.74,173.7,0.03763167]
[1740104011447,0.03839728,173.74,173.72,5.7544]
[1740104011649,0.03839728,173.74,173.7,0.03763167]
[1740104012454,0.03839728,173.74,173.73,5.7542]
[1740104013045,16.10156286,173.84,173.73,16.10156286]
[1740104013248,1.786,173.86,173.73,16.10156286]
[1740104013552,1.786,173.86,173.74,1.8548]
[1740104013752,1.786,173.86,173.81,5.7513]
[1740104013753,5.7503,173.85,173.81,5.7513]
[1740104014146,5.7937782,173.85,173.81,5.79289758]
[1740104014548,0.0434782,173.85,173.81,0.04159758]
[1740104014756,0.0434782,173.85,173.83,5.7506]
[1740104016054,0.0434782,173.85,173.81,0.04159758]
[1740104017456,0.0434782,173.85,173.82,5.7509]
[1740104022552,0.0434782,173.85,173.84,5.7505]
[1740104023459,16.10156286,173.94,173.9,5.7485]
[1740104023855,21.84896286,173.94,173.9,5.7485]
[1740104024062,11.1379,173.96,173.91,5.748]
[1740104024553,5.7473,173.94,173.9,5.7483]
[1740104024761,5.7473,173.94,173.92,0.0396697]
[1740104025359,5.7475,173.93,173.92,0.0396697]
[1740104030567,16.03510414,173.93,173.92,0.0396697]
[1740104038468,0.03884306,173.95,173.92,0.0396697]
[1740104038667,5.78584306,173.95,173.93,5.7475]
[1740104038870,5.78584306,173.95,173.92,0.0396697]
[1740104039069,5.78584306,173.95,173.92,5.7873697]
[1740104039270,5.7473,173.94,173.92,0.0396697]
[1740104041366,5.7473,173.94,173.92,5.7874697]
[1740104042373,5.7475,173.93,173.92,0.0396697]
[1740104045171,10.28760414,173.94,173.92,0.0396697]
[1740104045380,16.03500414,173.94,173.92,0.0396697]
[1740104046078,10.28760414,173.94,173.92,0.0396697]
[1740104046284,0.03884306,173.95,173.94,5.7472]
[1740104047684,0.03884306,173.95,173.93,5.7475]
[1740104048882,0.03884306,173.95,173.92,5.7874697]
[1740104049183,0.03884306,173.95,173.92,0.0396697]
[1740104049383,5.7475,173.93,173.92,0.0396697]
[1740104050782,10.28760414,173.94,173.92,0.0396697]
[1740104051087,0.03884306,173.95,173.92,0.0396697]
[1740104051476,0.03884306,173.95,173.92,5.7875697]
[1740104052079,0.03884306,173.95,173.92,0.0396697]
[1740104052280,0.03884306,173.95,173.94,5.7472]
[1740104054896,5.7449,174.01,173.93,10.28760414]
[1740104054897,5.2434,174.06,173.93,10.28760414]
[1740104055082,10.28760414,174.02,173.99,5.7456]
[1740104055486,10.28760414,174.02,173.95,10.28760414]
[1740104055788,5.7449,174.01,173.95,10.28760414]
[1740104056190,0.04223836,174.0,173.96,0.03792035]
[1740104056387,0.04223836,174.0,173.97,5.746]
[1740104057086,0.04223836,174.0,173.99,5.7456]
[1740104061429,0.04223836,174.0,173.99,16.03320414]
[1740104063834,0.04223836,174.0,173.99,5.7456]
[1740104066722,0.04223836,174.0,173.99,16.03320414]
[1740104071203,5.7427,174.08,173.99,10.28760414]
[1740104071403,5.7427,174.08,174.05,5.7435]
[1740104072004,10.28760414,174.09,174.05,5.7435]
[1740104072202,16.03010414,174.09,174.05,5.7435]
[1740104072399,16.06911368,174.09,174.05,5.78546578]
[1740104073704,5.7427,174.08,174.05,5.78546578]
[1740104074103,10.32661368,174.09,174.05,5.78546578]
[1740104074797,16.06911368,174.09,174.05,5.78546578]
[1740104075401,5.7426,174.08,174.05,5.78546578]
[1740104076706,0.03900954,174.09,174.05,0.04196578]
[1740104077110,5.78130954,174.09,174.06,5.7431]
[1740104081011,0.03900954,174.09,174.08,16.03020414]
[1740104082112,0.03900954,174.09,174.08,10.28760414]
[1740104083408,0.03900954,174.09,174.08,16.03020414]
[1740104083711,0.03900954,174.09,174.08,10.28760414]
[1740104085412,0.03900954,174.09,174.08,16.03020414]
[1740104089117,10.28760414,174.18,174.08,10.28760414]
[1740104089412,10.28760414,174.18,174.11,10.28760414]
[1740104089716,5.7401,174.16,174.12,5.7413]
[1740104089907,10.28760414,174.18,174.12,5.7413]
[1740104090110,5.7405,174.15,174.11,10.28760414]
[1740104090309,5.7405,174.15,174.13,0.03655988]
[1740104090817,5.7402,174.16,174.13,10.32416402]
[1740104091213,5.7402,174.16,174.13,16.06506402]
[1740104091415,5.78324759,174.17,174.13,16.06506402]
[1740104091815,5.78324759,174.17,174.14,5.7405]
[1740104092508,0.04364759,174.17,174.14,5.7405]
[1740104094817,0.04364759,174.17,174.13,10.32416402]
[1740104095017,0.04364759,174.17,174.15,5.7402]
[1740104095210,0.04364759,174.17,174.15,10.28760414]
[1740104096421,0.04364759,174.17,174.16,5.74]
[1740104097517,0.04364759,174.17,174.15,10.28760414]
[1740104099319,0.04364759,174.17,174.16,5.74]
[1740104103726,5.7378,174.23,174.2,5.7386]
[1740104104125,15.70150414,174.26,174.19,10.28760414]
[1740104104326,5.7383,174.22,174.19,10.28760414]
[1740104104723,5.78210566,174.22,174.19,10.28760414]
[1740104104929,5.78210566,174.22,174.19,10.32979731]
[1740104105125,5.78210566,174.22,174.19,16.06869731]
[1740104106228,0.04380566,174.22,174.19,10.32979731]
[1740104106530,0.04380566,174.22,174.21,16.02590414]
[1740104109528,0.04380566,174.22,174.19,16.06869731]
[1740104110323,5.78180566,174.22,174.19,16.06869731]
[1740104110937,0.04380566,174.22,174.19,10.32979731]
[1740104111136,0.04380566,174.22,174.21,10.28760414]
[1740104111827,0.04380566,174.22,174.21,16.02590414]
[1740104113429,5.2454,174.3,174.25,5.7368]
[1740104113632,5.2454,174.3,174.25,16.02440414]
[1740104114234,5.7358,174.29,174.25,10.28760414]
[1740104114434,5.7358,174.29,174.26,5.7366]
[1740104114738,5.77445672,174.29,174.26,5.7366]
[1740104115136,0.03865672,174.29,174.26,5.7366]
[1740104116844,5.77445672,174.29,174.25,16.06177344]
[1740104117742,0.03865672,174.29,174.25,16.06177344]
[1740104117949,0.03865672,174.29,174.25,10.32497344]
[1740104118646,5.7365,174.27,174.25,10.32497344]
[1740104118846,0.03865672,174.29,174.25,10.32497344]
[1740104119249,5.7366,174.27,174.25,16.06187344]
[1740104121250,5.7362,174.28,174.25,16.06187344]
[1740104121946,5.77445672,174.29,174.27,10.28760414]
[1740104123543,0.03865672,174.29,174.27,10.28760414]
[1740104124252,0.03865672,174.29,174.28,5.736]
[1740104126558,9.3639,174.35,174.31,5.7349]
[1740104126854,9.3639,174.35,174.32,10.28760414]
[1740104127249,5.7342,174.34,174.32,10.28760414]
[1740104127447,3.6301,174.35,174.32,10.28760414]
[1740104127656,3.67036861,174.35,174.32,10.28760414]
[1740104127857,5.7344,174.33,174.32,10.28760414]
[1740104129858,3.67036861,174.35,174.31,0.03895569]
[1740104130156,10.28760414,174.33,174.22,5.2275]
[1740104130359,10.28760414,174.31,174.24,10.28760414]
[1740104130759,10.28760414,174.29,174.22,10.28760414]
[1740104130959,10.28760414,174.27,174.2,10.28760414]
[1740104131158,5.7375,174.24,174.2,10.28760414]
[1740104131358,5.7375,174.24,174.22,0.0388825]
[1740104132061,5.7377,174.23,174.22,0.0388825]
[1740104132261,16.02530414,174.23,174.22,0.0388825]
[1740104132858,10.28760414,174.23,174.17,10.28760414]
[1740104133650,10.28760414,174.27,174.21,10.28760414]
[1740104133856,1.7737,174.28,174.23,10.28760414]
[1740104134051,0.03684839,174.26,174.23,10.28760414]
[1740104135358,0.03684839,174.26,174.25,5.737]
[1740104136558,0.03684839,174.26,174.23,16.02500414]
[1740104136763,0.03684839,174.26,174.22,0.03883446]
[1740104137364,0.03684839,174.26,174.23,10.28760414]
[1740104137564,0.03684839,174.26,174.25,16.02460414]